{"text_format":"3","workbook":"xlsx","n_sheets":2,"sheets":["UPORABA TEGA DELOVNEGA ZVEZKA","REDOVALNICA"],"not_rendered":{"defined_names":5},"read":"whole","date_system":"1900"}

{"sheet":"UPORABA TEGA DELOVNEGA ZVEZKA","index":0,"n_rows":10,"n_cols":2,"rows_kept":10}
[null,"NAVODILA"]
[null,"Z delovnim listom REDOVALNICA lahko izračunate ocene na podlagi pridobljenih točk pri posamezni nalogi. "]
[null,"Navodila: Ne pozabite shraniti varnostnih kopij svojih ocen."]
[null,"1. Vnesite ime vaše šole, informacije o razredu, imena študentov in ID-je študentov (izbirno).   "]
[null,"2. Prilagodite tabelo »Ocena in končna ocena« tako, da se ujema z vašim načinom ocenjevanja."]
[null,"3. Vnesite ime ocene ali preskusa znanja v celico G7, poleg tega pa še odstotek, kolikor je vredna posamezna ocena (na primer »Končna ocena« in »50 %«). "]
[null,"4. Vnesite ocene za posameznega študenta za vsak preskus znanja. Vrednosti v stolpcih »Rezultat«, »Črkovna ocean« in »Povprečna ocean« so samodejno izračunane, vendar jih lahko po želji preglasite. Povprečna in končna ocena nista popolni, dokler ne vnesete vseh rezultatov."]
[null,"Če želite spremeniti območje tiskanja, uporabite ukaz »Območje tiskanja« v meniju »Postavitev strani«."]
[null,"Vrednosti »Rezultat«, »Črkovna ocena« in »Povprečna ocena« niso veljavne, dokler ni dokončanih 100 % preskusov in nalog. "]
[null,"Vnesite vsako nalogo ali preskus znanja in odstotek skupne ocene v celice od G7 do W8."]

{"sheet":"REDOVALNICA","index":1,"n_rows":20,"n_cols":23,"rows_kept":20,"merged":[[5,1,5,5],[6,1,6,3],[6,4,6,5],[7,1,8,3],[7,4,7,5],[8,4,8,5],[15,1,15,5],[16,1,16,2],[17,1,17,2],[18,1,18,2],[19,1,19,2]]}
[null,"IME VAŠE ŠOLE"]
[]
[{"$nulls":6},"Rezultat",{"v":0,"d":"0%"},{"v":0.6,"d":"60%"},{"v":0.63,"d":"63%"},{"v":0.67,"d":"67%"},{"v":0.7,"d":"70%"},{"v":0.73,"d":"73%"},{"v":0.77,"d":"77%"},{"v":0.8,"d":"80%"},{"v":0.83,"d":"83%"},{"v":0.87,"d":"87%"},{"v":0.9,"d":"90%"},{"v":0.93,"d":"93%"},{"v":0.97,"d":"97%"}]
[{"$nulls":6},"Črkovna ocena","5","-7","7","+7","-8","8","+8","-9","9","+9","-10","10","+10"]
[{"$nulls":6},"Povprečna ocena",0,0.67,1,1.33,1.67,2,2.33,2.67,3,3.33,3.67,4,4]
[null,"Ime učitelja"]
[null,"Predavanje/projekt",null,null,"Ime naloge ali preskusa znanja"]
[null,"Leto/semester",null,null,"Odstotek (skupna vrednost bi morala biti 100 %)"]
[{"$nulls":4},{"$f":"\"Skupni odstotek: \"&SUM(G8:W8)*100&\"%\"","v":"Skupni odstotek: 0%"}]
[null,"Ime učenca","ID študenta","Rezultat","Črkovna ocena","Povprečna ocena","Stolpec 6","Stolpec 7","Stolpec 8","Stolpec 9","Stolpec 10","Stolpec 11","Stolpec 12","Stolpec 13","Stolpec 14","Stolpec 15","Stolpec 16","Stolpec 17","Stolpec 18","Stolpec 19","Stolpec 20","Stolpec 21","Stolpec 22"]
[{"$nulls":3},{"$f":"(IF(SUM(Ocene[[#This Row],[Stolpec 6]:[Stolpec 22]]),ROUND(SUMPRODUCT($G$8:$W$8,Ocene[[#This Row],[Stolpec 6]:[Stolpec 22]]),2),\"\"))","v":""},{"$f":"IF(Ocene[[#This Row],[Rezultat]]<>\"\",HLOOKUP(Ocene[[#This Row],[Rezultat]],TabelaRedovalnice,2),\"\")","v":""},{"$f":"IF(Ocene[[#This Row],[Rezultat]]<>\"\",HLOOKUP(Ocene[[#This Row],[Rezultat]],TabelaRedovalnice,3),\"\")","v":""}]
[{"$nulls":3},{"$f":"(IF(SUM(Ocene[[#This Row],[Stolpec 6]:[Stolpec 22]]),ROUND(SUMPRODUCT($G$8:$W$8,Ocene[[#This Row],[Stolpec 6]:[Stolpec 22]]),2),\"\"))","v":""},{"$f":"IF(Ocene[[#This Row],[Rezultat]]<>\"\",HLOOKUP(Ocene[[#This Row],[Rezultat]],TabelaRedovalnice,2),\"\")","v":""},{"$f":"IF(Ocene[[#This Row],[Rezultat]]<>\"\",HLOOKUP(Ocene[[#This Row],[Rezultat]],TabelaRedovalnice,3),\"\")","v":""}]
[{"$nulls":3},{"$f":"(IF(SUM(Ocene[[#This Row],[Stolpec 6]:[Stolpec 22]]),ROUND(SUMPRODUCT($G$8:$W$8,Ocene[[#This Row],[Stolpec 6]:[Stolpec 22]]),2),\"\"))","v":""},{"$f":"IF(Ocene[[#This Row],[Rezultat]]<>\"\",HLOOKUP(Ocene[[#This Row],[Rezultat]],TabelaRedovalnice,2),\"\")","v":""},{"$f":"IF(Ocene[[#This Row],[Rezultat]]<>\"\",HLOOKUP(Ocene[[#This Row],[Rezultat]],TabelaRedovalnice,3),\"\")","v":""}]
[{"$nulls":3},{"$f":"(IF(SUM(Ocene[[#This Row],[Stolpec 6]:[Stolpec 22]]),ROUND(SUMPRODUCT($G$8:$W$8,Ocene[[#This Row],[Stolpec 6]:[Stolpec 22]]),2),\"\"))","v":""},{"$f":"IF(Ocene[[#This Row],[Rezultat]]<>\"\",HLOOKUP(Ocene[[#This Row],[Rezultat]],TabelaRedovalnice,2),\"\")","v":""},{"$f":"IF(Ocene[[#This Row],[Rezultat]]<>\"\",HLOOKUP(Ocene[[#This Row],[Rezultat]],TabelaRedovalnice,3),\"\")","v":""}]
[{"$nulls":3},{"$f":"(IF(SUM(Ocene[[#This Row],[Stolpec 6]:[Stolpec 22]]),ROUND(SUMPRODUCT($G$8:$W$8,Ocene[[#This Row],[Stolpec 6]:[Stolpec 22]]),2),\"\"))","v":""},{"$f":"IF(Ocene[[#This Row],[Rezultat]]<>\"\",HLOOKUP(Ocene[[#This Row],[Rezultat]],TabelaRedovalnice,2),\"\")","v":""},{"$f":"IF(Ocene[[#This Row],[Rezultat]]<>\"\",HLOOKUP(Ocene[[#This Row],[Rezultat]],TabelaRedovalnice,3),\"\")","v":""}]
[]
[null,"Povzetek predavanja",null,"Rezultat","Črkovna ocena","Povprečna ocena","","","","","","","","","","",""]
[null," Povprečno",null,{"$f":"IFERROR(AVERAGE(Ocene[[#All],[Rezultat]]),0)","v":{"v":0,"d":"0.0%"}},{"$f":"IFERROR(HLOOKUP(D18,TabelaRedovalnice,2),\"\")","v":"5"},{"$f":"IFERROR(AVERAGE(Ocene[[#All],[Povprečna ocena]]),0)","v":0},"","","","","","","","","","","","","","","","",""]
[null," Najvišji rezultat",null,{"$f":"IFERROR(MAX(Ocene[[#All],[Rezultat]]),0)","v":{"v":0,"d":"0.0%"}},{"$f":"IFERROR(HLOOKUP(D19,TabelaRedovalnice,2),\"\")","v":"5"},{"$f":"IFERROR(MAX(Ocene[[#All],[Povprečna ocena]]),0)","v":0},"","","","","","","","","","","","","","","","",""]
[null," Najnižji rezultat",null,{"$f":"IFERROR(MIN(Ocene[[#All],[Rezultat]]),0)","v":{"v":0,"d":"0.0%"}},{"$f":"IFERROR(HLOOKUP(D20,TabelaRedovalnice,2),\"\")","v":"5"},{"$f":"IFERROR(MIN(Ocene[[#All],[Povprečna ocena]]),0)","v":0},"","","","","","","","","","","","","","","","",""]